bitfinex/quotes_BTCUSD_20250211
["timestamp","ask_amount","ask_price","bid_price","bid_amount"]
[1739297067153,0.25848665,96164.0,96163.0,0.001]
[1739297067705,0.33908665,96164.0,96163.0,0.001]
[1739297068540,0.155988,96161.0,96160.0,0.0001066]
[1739297068705,0.25849165,96161.0,96160.0,0.0001066]
[1739297069102,0.3609953,96161.0,96160.0,0.0001066]
[1739297069351,0.4092953,96161.0,96160.0,0.0001066]
[1739297069499,0.5592953,96161.0,96160.0,0.0001066]
[1739297070641,0.5109953,96161.0,96160.0,0.0001066]
[1739297071268,0.5149953,96161.0,96160.0,0.0001066]
[1739297071548,0.5199953,96161.0,96160.0,0.0001066]
[1739297071707,0.5249953,96161.0,96160.0,0.0001066]
[1739297071908,0.5159953,96161.0,96160.0,0.0001066]
[1739297072142,0.5279953,96161.0,96160.0,0.0001066]
[1739297072312,0.5509953,96161.0,96160.0,0.0001066]
[1739297072947,0.44849165,96161.0,96160.0,0.0001066]
[1739297073994,0.44349165,96161.0,96160.0,0.0001066]
[1739297074351,0.45049165,96161.0,96160.0,0.0001066]
[1739297074774,0.42749165,96161.0,96160.0,0.0001066]
[1739297075309,0.41549165,96161.0,96160.0,0.0001066]
[1739297075723,0.42949165,96161.0,96160.0,0.0001066]
[1739297077069,0.42971552,96161.0,96160.0,0.0001066]
[1739297078317,0.53221917,96161.0,96160.0,0.0001066]
[1739297078532,0.02122387,96161.0,96160.0,0.0001066]
[1739297078744,0.17721187,96161.0,96160.0,0.0001066]
[1739297081144,0.42971552,96161.0,96160.0,0.0001066]
[1739297087589,0.42920634,96161.0,96160.0,0.0001066]
[1739297088588,0.51220634,96161.0,96160.0,0.0001066]
[1739297090036,0.42920634,96161.0,96160.0,0.0001066]
[1739297091173,0.53170999,96161.0,96160.0,0.0001066]
[1739297091746,0.42844822,96161.0,96160.0,0.0001066]
[1739297092924,0.42793339,96161.0,96160.0,0.0001066]
[1739297095345,0.42589666,96161.0,96160.0,0.0001066]
[1739297095776,0.01740501,96161.0,96160.0,0.0932066]
[1739297098535,0.00122387,96161.0,96160.0,0.2611966]
[1739297099767,0.00122387,96161.0,96160.0,0.28537096]
[1739297102616,0.00122387,96161.0,96160.0,0.1082066]
[1739297103608,0.00122387,96161.0,96160.0,0.2541966]
[1739297103925,0.00122387,96161.0,96160.0,0.2641966]
[1739297104152,0.00122387,96161.0,96160.0,0.31807901]
[1739297104895,0.00122387,96161.0,96160.0,0.2641966]
[1739297111568,0.00122387,96161.0,96160.0,0.1082066]
[1739297111782,0.00122387,96161.0,96160.0,0.0251066]
[1739297112528,0.15721187,96161.0,96160.0,0.0051066]
[1739297112953,0.25971552,96161.0,96160.0,0.0051066]
[1739297114408,0.32834703,96161.0,96160.0,0.0031066]
[1739297114606,0.56144703,96161.0,96160.0,0.0001066]
[1739297114785,0.61074703,96161.0,96160.0,0.0011066]
[1739297116262,0.61074703,96161.0,96160.0,0.0021066]
[1739297116463,1.00636123,96161.0,96160.0,0.0021066]
[1739297116668,1.00636123,96161.0,96160.0,0.0011066]
[1739297117075,1.00636123,96161.0,96160.0,0.0021066]
[1739297117306,1.00636123,96161.0,96160.0,0.0011066]
[1739297117507,1.00636123,96161.0,96160.0,0.0001066]
[1739297117710,1.01036123,96161.0,96160.0,0.0001066]
[1739297117912,1.01636123,96161.0,96160.0,0.0001066]
[1739297118321,1.02036123,96161.0,96160.0,0.0001066]
[1739297118517,0.95072972,96161.0,96160.0,0.0001066]
[1739297120056,0.94813503,96161.0,96160.0,0.0001066]
[1739297123837,0.56052083,96161.0,96160.0,0.0001066]
[1739297124673,0.5607447,96161.0,96160.0,0.0001066]
[1739297126560,0.66324835,96161.0,96160.0,0.0001066]
[1739297127339,0.5607447,96161.0,96160.0,0.0001066]
[1739297131049,0.5467447,96161.0,96160.0,0.0001066]
[1739297131398,0.5687447,96161.0,96160.0,0.0001066]
[1739297132689,0.5537447,96161.0,96160.0,0.0001066]
[1739297132875,0.5677447,96161.0,96160.0,0.0001066]
[1739297133079,0.66324835,96161.0,96160.0,0.0001066]
[1739297133490,0.2633447,96161.0,96160.0,0.0001066]
[1739297133736,0.2703447,96161.0,96160.0,0.0001066]
[1739297134056,0.2773447,96161.0,96160.0,0.0001066]
[1739297134268,0.2633447,96161.0,96160.0,0.0001066]
[1739297134471,0.2563447,96161.0,96160.0,0.0001066]
[1739297134671,0.4273447,96161.0,96160.0,0.0001066]
[1739297135014,0.01422387,96161.0,96160.0,0.0001066]
[1739297135215,0.17021187,96161.0,96160.0,0.0823066]
[1739297135838,0.15621187,96161.0,96160.0,0.0823066]
[1739297136015,0.00022387,96161.0,96160.0,0.0823066]
[1739297136217,0.17121187,96161.0,96160.0,0.0823066]
[1739297136441,0.17121187,96161.0,96160.0,0.1023066]
[1739297136442,0.01522387,96161.0,96160.0,0.1023066]
[1739297137035,0.01922387,96161.0,96160.0,0.31765306]
[1739297137430,0.00022387,96161.0,96160.0,0.31665306]
[1739297137633,0.00022387,96161.0,96160.0,0.41915671]
[1739297137888,0.00422387,96161.0,96160.0,0.40990025]
[1739297138038,0.00622387,96161.0,96160.0,0.40990025]
[1739297138443,0.00422387,96161.0,96160.0,0.40990025]
[1739297138642,0.00422387,96161.0,96160.0,0.41290025]
[1739297139362,0.00022387,96161.0,96160.0,0.41190025]
[1739297139574,0.00122387,96161.0,96160.0,0.41590025]
[1739297139724,0.00122387,96161.0,96160.0,0.3133966]
[1739297139930,0.00022387,96161.0,96160.0,0.3093966]
[1739297140224,0.00122387,96161.0,96160.0,0.3123966]
[1739297140575,0.00122387,96161.0,96160.0,0.3153966]
[1739297140706,0.00122387,96161.0,96160.0,0.3123966]
[1739297140904,0.00122387,96161.0,96160.0,0.3093966]
[1739297141111,0.00022387,96161.0,96160.0,0.3093966]
[1739297141309,0.00022387,96161.0,96160.0,0.3063966]
[1739297141551,0.00022387,96161.0,96160.0,0.3093966]
[1739297142371,0.00122387,96161.0,96160.0,0.3133966]
[1739297145305,0.00122387,96161.0,96160.0,0.3033966]
[1739297146473,0.00122387,96161.0,96160.0,0.1474066]
[1739297146637,0.00122387,96161.0,96160.0,0.0171066]
[1739297147324,0.00122387,96161.0,96160.0,0.0141066]
[1739297147701,0.00122387,96161.0,96160.0,0.0161066]
[1739297148213,0.00122387,96161.0,96160.0,0.0081066]
[1739297148397,0.00022387,96161.0,96160.0,0.0041066]
[1739297148598,0.00022387,96161.0,96160.0,0.0181066]
[1739297148797,0.00122387,96161.0,96160.0,0.0181066]
[1739297149201,0.00122387,96161.0,96160.0,0.0281066]
[1739297149422,0.15721187,96161.0,96160.0,0.0281066]
[1739297149623,0.06036159,96161.0,96160.0,0.0281066]
[1739297149825,0.06036159,96161.0,96160.0,0.0181066]
[1739297150087,0.31785324,96161.0,96160.0,0.0001066]
[1739297150213,0.25871552,96161.0,96160.0,0.0001066]
[1739297150427,0.25871552,96161.0,96160.0,0.0031066]
[1739297150632,0.25871552,96161.0,96160.0,0.0021066]
[1739297150984,0.25971552,96161.0,96160.0,0.0021066]
[1739297151356,0.34470161,96161.0,96160.0,0.0021066]
[1739297151500,0.34470161,96161.0,96160.0,0.0001066]
[1739297151698,0.25871552,96161.0,96160.0,0.0001066]
[1739297151901,0.26271552,96161.0,96160.0,0.0011066]
[1739297152147,0.26671552,96161.0,96160.0,0.0011066]
[1739297152327,0.26271552,96161.0,96160.0,0.0001066]
[1739297152531,0.35900161,96161.0,96160.0,0.0001066]
[1739297159764,0.50900161,96161.0,96160.0,0.0001066]
[1739297160284,0.42371552,96161.0,96160.0,0.0001066]
[1739297165883,0.50411552,96161.0,96160.0,0.0001066]
[1739297171082,0.50411552,96161.0,96141.0,0.01]
[1739297171083,0.156069,96111.0,96110.0,0.0001066]
[1739297171515,0.306069,96111.0,96110.0,0.00020513]
[1739297172301,0.306085,96101.0,96100.0,0.130051]
[1739297172506,0.306085,96101.0,96100.0,0.13049494]
[1739297172507,0.80183515,96101.0,96100.0,0.13049494]
[1739297172908,0.83063907,96101.0,96100.0,0.13049494]
[1739297174240,0.85363907,96101.0,96100.0,0.13049494]
[1739297174426,0.85063907,96101.0,96100.0,0.13049494]
[1739297174650,0.94514272,96101.0,96100.0,0.13049494]
[1739297174851,0.95314272,96101.0,96100.0,0.13049494]
[1739297175589,0.97150456,96101.0,96100.0,0.13049494]
[1739297175797,0.96350456,96101.0,96100.0,0.13049494]
[1739297175998,0.97150456,96101.0,96100.0,0.13049494]
[1739297176201,0.93470064,96101.0,96100.0,0.13049494]
[1739297176359,0.44695049,96101.0,96100.0,0.13049494]
[1739297176564,0.47575441,96101.0,96100.0,0.13049494]
[1739297176762,0.44695049,96101.0,96100.0,0.13049494]
[1739297177172,0.03036184,96101.0,96100.0,0.29658194]
[1739297177370,0.168085,96101.0,96100.0,0.14049494]
[1739297177701,0.012,96101.0,96100.0,0.14049494]
[1739297178081,0.012,96101.0,96100.0,0.30658194]
[1739297178342,0.012,96101.0,96100.0,0.23238194]
[1739297178924,0.012,96101.0,96100.0,0.31842209]
[1739297179124,0.012,96101.0,96100.0,0.42092574]
[1739297179358,0.012,96101.0,96100.0,0.55052574]
[1739297179696,0.009,96101.0,96100.0,0.70052574]
[1739297180083,0.012,96101.0,96100.0,0.72176769]
[1739297180289,0.009,96101.0,96100.0,0.72176769]
[1739297180485,0.01,96101.0,96100.0,0.72176769]
[1739297180620,0.01,96101.0,96100.0,0.63572754]
[1739297182006,0.01,96101.0,96100.0,0.52322389]
[1739297182437,0.01,96101.0,96100.0,0.53322389]
[1739297182769,0.009,96101.0,96100.0,0.53322389]
[1739297183012,0.01,96101.0,96100.0,0.38622389]
[1739297183307,0.208059,96127.0,96100.0,0.22713689]
[1739297183539,0.13158017,96126.0,96122.0,0.01]
[1739297183721,0.15605,96123.0,96122.0,0.01]
[1739297183918,0.25855365,96123.0,96122.0,0.01]
[1739297185795,0.26255365,96123.0,96122.0,0.01]
[1739297186003,0.25855365,96123.0,96122.0,0.01]
[1739297186623,0.26255365,96123.0,96122.0,0.01]
[1739297186825,0.26755365,96123.0,96122.0,0.01]
[1739297187036,0.11350365,96123.0,96122.0,0.01]
[1739297187191,0.002,96123.0,96122.0,0.01]
[1739297187368,0.011,96123.0,96122.0,0.01]
[1739297187566,0.013,96123.0,96122.0,0.01]
[1739297187781,0.004,96123.0,96122.0,0.176051]
[1739297187988,0.004,96123.0,96122.0,0.17709123]
[1739297188310,0.01,96123.0,96122.0,0.176051]
[1739297189482,0.15,96152.0,96129.0,0.15604]
[1739297189483,0.156029,96136.0,96129.0,0.15604]
[1739297189654,0.156029,96136.0,96134.0,0.01]
[1739297189829,0.01839912,96138.0,96134.0,0.01]
[1739297190015,0.156029,96136.0,96134.0,0.01]
[1739297190378,0.15603,96135.0,96134.0,0.01]
[1739297190769,0.15603,96135.0,96134.0,0.01015431]
[1739297190946,0.156029,96136.0,96134.0,0.01015431]
[1739297191339,0.163029,96136.0,96134.0,0.01015431]
[1739297191656,0.15603,96135.0,96134.0,0.01015431]
[1739297192033,0.25853365,96135.0,96134.0,0.01015431]
[1739297192264,0.32880624,96135.0,96134.0,0.01015431]
[1739297192501,0.33080624,96135.0,96134.0,0.00015431]
[1739297193073,0.48680624,96135.0,96134.0,0.00015431]
[1739297193403,0.50980624,96135.0,96134.0,0.00015431]
[1739297194443,0.53261016,96135.0,96134.0,0.00015431]
[1739297195052,0.173,96134.0,96105.0,0.01]
[1739297195273,0.156077,96106.0,96105.0,0.01044394]
[1739297195431,0.25858065,96106.0,96105.0,0.01044394]
[1739297196462,0.10250365,96106.0,96105.0,0.01044394]
[1739297196812,0.001,96106.0,96105.0,0.02144394]
[1739297198881,0.157077,96106.0,96105.0,0.02144394]
[1739297199289,0.17511172,96106.0,96105.0,0.02144394]
[1739297200113,0.17511172,96106.0,96105.0,0.00144394]
[1739297200114,0.33674534,96106.0,96105.0,0.00144394]
[1739297200318,0.48674534,96106.0,96105.0,0.00144394]
[1739297201607,0.48674534,96106.0,96105.0,0.00044394]
[1739297201958,0.48774534,96106.0,96105.0,0.00044394]
[1739297202499,0.49074534,96106.0,96105.0,0.00044394]
[1739297202642,0.52215364,96106.0,96105.0,0.00044394]
[1739297202840,0.49374534,96106.0,96105.0,0.00044394]
[1739297203303,0.49074534,96106.0,96105.0,0.00044394]
[1739297203530,0.50174534,96106.0,96105.0,0.00044394]
[1739297205124,0.50074534,96106.0,96105.0,0.00044394]
[1739297205357,0.49674534,96106.0,96105.0,0.00044394]
[1739297205473,0.48974534,96106.0,96105.0,0.00044394]
[1739297205887,0.44161537,96106.0,96105.0,0.00044394]
[1739297208818,0.42661537,96106.0,96105.0,0.00044394]
[1739297209044,0.44161537,96106.0,96105.0,0.00044394]
[1739297211438,0.13553837,96106.0,96105.0,0.00044394]
[1739297211583,0.29161537,96106.0,96105.0,0.00044394]
[1739297212349,0.27358065,96106.0,96105.0,0.00044394]
[1739297212579,0.34255831,96106.0,96105.0,0.00044394]
[1739297220327,0.49255831,96106.0,96105.0,0.00044394]
[1739297220571,0.49255831,96106.0,96105.0,0.00055054]
[1739297222795,0.42358065,96106.0,96105.0,0.00055054]
[1739297224179,0.44658065,96106.0,96105.0,0.00055054]
[1739297224383,0.52728065,96106.0,96105.0,0.00055054]
[1739297224788,0.306085,96101.0,96100.0,0.05500824]
[1739297224964,0.40858865,96101.0,96100.0,0.05500824]
[1739297225155,0.5110923,96101.0,96100.0,0.05500824]
[1739297225881,0.5180923,96101.0,96100.0,0.05500824]
[1739297226306,0.5210923,96101.0,96100.0,0.05500824]
[1739297227741,0.5340923,96101.0,96100.0,0.05500824]
[1739297227888,0.5460923,96101.0,96100.0,0.05500824]
[1739297229798,0.8716923,96101.0,96100.0,0.05500824]
[1739297230010,0.9926923,96101.0,96100.0,0.05500824]
[1739297230450,0.9806923,96101.0,96100.0,0.05500824]
[1739297230921,0.9926923,96101.0,96100.0,0.05500824]
[1739297236377,0.6670923,96101.0,96100.0,0.05500824]
[1739297239017,0.26450365,96101.0,96100.0,0.05500824]
[1739297239163,0.26450365,96101.0,96078.0,0.156123]
[1739297239164,9.3671306,96079.0,96078.0,0.156123]
[1739297240361,9.3681306,96079.0,96078.0,0.157123]
[1739297241205,9.3671306,96079.0,96078.0,0.156123]
[1739297241610,9.3681306,96079.0,96078.0,0.157123]
[1739297242128,9.3681306,96079.0,96078.0,0.284223]
[1739297243697,9.36609163,96079.0,96078.0,0.284223]
[1739297245098,9.36609163,96079.0,96078.0,0.2843297]
[1739297250447,9.36609163,96079.0,96078.0,0.1572297]
[1739297251180,9.36609163,96079.0,96078.0,0.0011067]
[1739297251181,9.64181329,96079.0,96078.0,0.0011067]
[1739297251400,9.74431694,96079.0,96078.0,0.0011067]
[1739297251563,9.58819594,96079.0,96078.0,0.0011067]
[1739297251750,9.74431694,96079.0,96078.0,0.0011067]
[1739297251949,9.74331694,96079.0,96078.0,0.0011067]
[1739297252152,9.74431694,96079.0,96078.0,0.0001067]
[1739297252402,9.74431694,96079.0,96078.0,0.0011067]
[1739297252609,9.74431694,96079.0,96054.0,0.205262]
[1739297252610,8.76117343,96055.0,96054.0,0.205262]
[1739297253167,8.75989892,96055.0,96054.0,0.205262]
[1739297253782,8.76089892,96055.0,96054.0,0.205262]
[1739297254011,8.76189892,96055.0,96054.0,0.206262]
[1739297254214,8.76189892,96055.0,96054.0,0.22755813]
[1739297254418,8.76189892,96055.0,96054.0,0.27517404]
[1739297256197,8.76189892,96055.0,96054.0,0.06991204]
[1739297256411,8.86440257,96055.0,96054.0,0.04861591]
[1739297256754,8.76189892,96055.0,96054.0,0.04861591]
[1739297257159,8.76089892,96055.0,96054.0,0.20488461]
[1739297257366,8.76289892,96055.0,96054.0,0.20388461]
[1739297257560,8.76189892,96055.0,96054.0,0.20388461]
[1739297257913,8.76189892,96055.0,96050.0,0.25583991]
[1739297257914,5.67045728,96020.0,96019.0,0.156219]
[1739297258130,5.67045728,96020.0,96019.0,0.25872265]
[1739297258330,5.67045728,96020.0,96019.0,0.27919328]
[1739297259325,5.46578328,96020.0,96019.0,0.30219328]
[1739297259897,5.46578328,96020.0,96019.0,0.45219328]
[1739297260092,5.46678328,96020.0,96019.0,0.55569693]
[1739297260319,5.46778328,96020.0,96019.0,0.55569693]
[1739297260894,5.46778328,96020.0,96019.0,0.59509693]
[1739297261341,5.46778328,96020.0,96019.0,0.46959328]
[1739297263139,5.46778328,96020.0,96019.0,0.31959328]
[1739297263368,5.46778328,96020.0,96019.0,0.46959328]
[1739297264320,5.46778328,96020.0,96019.0,0.43019328]
[1739297265295,5.46778328,96020.0,96019.0,0.28019328]
[1739297265551,5.46678328,96020.0,96019.0,0.27919328]
[1739297265756,5.46678328,96020.0,96019.0,0.28019328]
[1739297266196,5.46878328,96020.0,96019.0,0.28019328]
[1739297266697,5.46878328,96020.0,96019.0,0.17768963]
[1739297267351,5.46878328,96020.0,95943.0,0.09315423]
[1739297267352,0.15624,96006.0,96000.0,1.83675534]
[1739297267617,0.176248,96001.0,96000.0,1.6626909]
[1739297267844,0.01,96001.0,96000.0,1.6626909]
[1739297268092,0.166248,96001.0,96000.0,1.6626909]
[1739297268518,0.033,96001.0,96000.0,1.6626909]
[1739297268744,0.13550365,96001.0,96000.0,1.6626909]
[1739297268974,0.13550365,96001.0,96000.0,1.7408409]
[1739297268975,0.1322,96001.0,96000.0,1.7408409]
[1739297269195,0.1222,96001.0,96000.0,1.5845909]
[1739297269394,0.01,96007.0,96000.0,1.5855909]
[1739297269608,0.01,96006.0,96000.0,1.5855909]
[1739297269806,0.01,96010.0,96005.0,0.156241]
[1739297270022,0.01,96006.0,96000.0,1.5856977]
[1739297270210,0.01,96007.0,96000.0,1.5846977]
[1739297270414,0.01,96008.0,96007.0,0.156238]
[1739297270615,0.0457,96016.0,96001.0,0.08374767]
[1739297270871,0.0457,96016.0,96006.0,0.14525313]
[1739297271070,0.0457,96016.0,96011.0,0.208307]
[1739297271312,0.0457,96016.0,96012.0,0.156229]
[1739297271519,0.0457,96016.0,96013.0,0.156227]
[1739297271730,0.0457,96016.0,96011.0,0.208307]
[1739297272109,0.01,96019.0,96007.0,0.208318]
[1739297272341,0.01,96019.0,96006.0,0.02111577]
[1739297272826,0.001,96016.0,96012.0,0.156228]
[1739297273250,0.01,96019.0,96006.0,0.22943377]
[1739297273457,0.01,96019.0,96006.0,0.02111577]
[1739297273716,0.01,96019.0,96013.0,0.156228]
[1739297273938,0.01,96019.0,96008.0,0.208315]
[1739297274075,0.01,96019.0,96009.0,0.02294308]
[1739297274280,0.01,96019.0,96014.0,0.156226]
[1739297274732,0.01,96019.0,96006.0,0.02111577]
[1739297274937,0.01,96019.0,96015.0,0.156224]
[1739297275137,0.01,96019.0,96006.0,0.02111577]
[1739297275319,0.01,96019.0,96012.0,0.15623]
[1739297275514,0.01,96019.0,96014.0,0.156227]
[1739297275720,2.10132401,95976.0,95970.0,0.08270615]
[1739297275918,2.10132401,95976.0,95975.0,0.26946608]
[1739297276928,2.10132401,95976.0,95975.0,0.29246608]
[1739297277136,2.01796801,95976.0,95975.0,0.29246608]
[1739297277341,2.01796801,95976.0,95975.0,0.31462022]
[1739297277747,2.01796801,95976.0,95975.0,0.29246608]
[1739297277959,2.01796801,95976.0,95975.0,0.46497501]
[1739297278197,2.01896801,95976.0,95975.0,0.46497501]
[1739297278401,2.01896801,95976.0,95975.0,0.48562927]
[1739297278814,2.01996801,95976.0,95975.0,0.52612927]
[1739297280605,1.98182272,95976.0,95975.0,0.50362034]
[1739297282241,1.98182272,95976.0,95975.0,0.46312034]
[1739297282620,1.98182272,95976.0,95975.0,0.46322714]
[1739297283028,1.95839776,95976.0,95975.0,0.46322714]
[1739297283260,1.89684559,95976.0,95975.0,0.46322714]
[1739297283626,1.89684559,95976.0,95975.0,0.47130714]
[1739297283827,1.89684559,95976.0,95975.0,0.4907356]
[1739297284382,1.89684559,95976.0,95975.0,0.52308884]
[1739297285376,1.89684559,95976.0,95975.0,0.52899884]
[1739297285635,1.89684559,95976.0,95975.0,0.50599884]
[1739297286072,1.68562698,95976.0,95975.0,0.50599884]
[1739297288188,1.66045372,95976.0,95975.0,0.50599884]
[1739297289051,1.63935572,95976.0,95975.0,0.52899884]
[1739297289680,1.63935572,95976.0,95975.0,0.50957038]
[1739297290855,1.49813522,95976.0,95975.0,0.50957038]
[1739297291067,0.66576774,95976.0,95975.0,0.78879246]
[1739297291266,0.66576774,95976.0,95975.0,0.87539246]
[1739297291267,0.49162462,95976.0,95975.0,0.87539246]
[1739297291380,0.18843558,95976.0,95975.0,0.87539246]
[1739297291605,0.108567,95976.0,95975.0,0.97965476]
[1739297291874,0.00103603,95976.0,95975.0,0.97965476]
[1739297292128,0.00022428,96020.0,96019.0,0.156219]
[1739297292592,0.00022428,96020.0,96010.0,0.14525313]
[1739297292787,0.1272,96019.0,95997.0,0.156254]
[1739297293128,0.1272,96019.0,95998.0,0.1852098]
[1739297293343,0.1272,96019.0,96000.0,0.30150113]
[1739297293632,0.1272,96019.0,96001.0,0.10250365]
[1739297294079,0.0773,96018.0,96001.0,0.03243639]
[1739297294872,0.0773,96018.0,96010.0,0.006]
[1739297295399,0.0773,96018.0,96001.0,0.03243639]
[1739297295606,0.0783,96018.0,96001.0,0.04043639]
[1739297296254,0.0783,96018.0,96010.0,0.004]
[1739297296424,0.0783,96018.0,96001.0,0.04043639]
[1739297296831,0.0783,96018.0,96001.0,0.04443639]
[1739297297038,0.0783,96018.0,96001.0,0.04043639]
[1739297297435,0.0783,96018.0,96010.0,0.004]
[1739297298776,0.01,96011.0,96010.0,0.004]
[1739297298977,0.2986,96011.0,96010.0,0.015]
[1739297299175,0.2986,96011.0,96010.0,0.011]
[1739297299583,0.2197,96011.0,96001.0,0.03743639]
[1739297299781,0.0789,96010.0,96001.0,0.03243639]
[1739297300102,0.0789,96010.0,96001.0,0.02743639]
[1739297301170,0.01698834,96009.0,96001.0,0.03043639]
[1739297301574,0.0789,96008.0,96001.0,0.03043639]
[1739297302000,0.0789,96008.0,96001.0,0.03643639]
[1739297302467,0.0789,96008.0,96001.0,0.03343639]
[1739297302621,0.0789,96008.0,96001.0,0.03043639]
[1739297302946,0.0799,96008.0,96002.0,0.02743639]
[1739297303173,0.01332128,96008.0,96001.0,0.01]
[1739297303950,0.01332128,96008.0,96001.0,0.007]
[1739297304153,0.01232128,96008.0,96002.0,0.03253151]
[1739297304336,0.01232128,96008.0,96002.0,0.03553151]
[1739297304538,0.01332128,96008.0,96003.0,0.03253151]
[1739297304758,0.01332128,96008.0,96002.0,0.01]
[1739297305603,0.01332128,96008.0,95990.0,0.156266]
[1739297305604,0.01232128,96008.0,95990.0,0.156266]
[1739297305720,0.01332128,96008.0,96003.0,0.007]
[1739297306849,0.01332128,96008.0,96003.0,0.01]
[1739297307262,0.01332128,96008.0,96003.0,0.003]
[1739297307602,0.01232128,96008.0,96003.0,0.003]
[1739297307798,0.01332128,96008.0,96003.0,0.003]
[1739297308298,0.01232128,96008.0,96003.0,0.003]
[1739297308557,0.01232128,96008.0,96003.0,0.01]
[1739297308749,0.01332128,96008.0,96003.0,0.01]
[1739297310129,0.01631962,96009.0,96003.0,0.01]
[1739297311197,0.01631962,96009.0,95990.0,0.14525313]
[1739297311406,0.01731962,96009.0,96003.0,0.006]
[1739297311998,0.01631962,96009.0,95990.0,0.14525313]
[1739297312422,0.02231962,96009.0,95990.0,0.14625313]
[1739297312986,0.02231962,96009.0,96003.0,0.003]
[1739297313189,0.0781,96008.0,95990.0,0.14625313]
[1739297313835,0.0781,96008.0,95990.0,0.001]
[1739297314233,0.0781,96008.0,95986.0,0.08270615]
[1739297314447,0.0781,96008.0,95987.0,0.10250365]
[1739297314651,0.0781,96008.0,95987.0,0.10354516]
[1739297315070,0.0781,96008.0,95988.0,0.156269]
[1739297315292,0.0791,96008.0,95989.0,0.10250365]
[1739297315686,0.0781,96008.0,95989.0,0.10250365]
[1739297316185,0.0811,96008.0,95989.0,0.10250365]
[1739297316604,0.0801,96008.0,95989.0,0.10250365]
[1739297316839,0.0811,96008.0,95989.0,0.10250365]
[1739297317207,0.0791,96008.0,95989.0,0.10250365]
[1739297317652,0.0811,96008.0,95986.0,0.08270615]
[1739297317832,0.01,96006.0,95987.0,0.03251142]
[1739297318028,0.01,96006.0,95986.0,0.08270615]
[1739297318252,0.01,96006.0,95990.0,0.14525313]
[1739297318861,0.01,96006.0,95986.0,0.08270615]
[1739297319057,0.01,96006.0,95987.0,0.03251163]
[1739297319058,0.011,96006.0,95987.0,0.03251163]
[1739297319359,0.011,96006.0,95986.0,0.08270615]
[1739297319571,0.12299076,95996.0,95987.0,0.0325132]
[1739297319719,0.0781,95993.0,95976.0,0.0001068]
[1739297321236,0.0781,95993.0,95980.0,0.14525313]
[1739297321433,0.0791,95993.0,95980.0,0.14525313]
[1739297321635,0.0791,95993.0,95990.0,0.0001066]
[1739297321854,0.0781,95993.0,95990.0,0.0001066]
[1739297322627,0.0791,95993.0,95990.0,0.0001066]
[1739297323677,0.0791,95993.0,95990.0,0.0031066]
[1739297324080,0.0781,95993.0,95990.0,0.0031066]
[1739297324277,0.0791,95993.0,95990.0,0.0101066]
[1739297325283,0.0791,95993.0,95991.0,0.00104166]
[1739297325525,0.001,95993.0,95990.0,0.0101066]
[1739297326213,0.001,95993.0,95992.0,0.156263]
[1739297327197,0.0458,96004.0,95998.0,0.156253]
[1739297327401,0.0458,96004.0,95996.0,0.156255]
[1739297327601,0.0458,96004.0,95997.0,0.156253]
[1739297327764,0.0458,96004.0,95991.0,0.007]
[1739297327970,0.0458,96004.0,95995.0,0.156256]
[1739297328347,0.01631962,96007.0,96003.0,0.156245]
[1739297328466,0.01631962,96007.0,96006.0,0.15624]
[1739297328676,0.01631962,96007.0,96006.0,0.18878483]
[1739297328886,0.01631962,96007.0,96006.0,0.29128848]
[1739297329952,0.01631962,96007.0,96006.0,0.29428848]
[1739297330148,0.01631962,96007.0,96006.0,0.29128848]
[1739297330697,0.01731962,96007.0,96006.0,0.29608848]
[1739297331088,0.01731962,96007.0,96006.0,0.29208848]
[1739297331287,0.01731962,96007.0,96006.0,0.44208848]
[1739297331491,0.01831962,96007.0,96006.0,0.53558848]
[1739297331722,0.00022428,96020.0,96017.0,0.156222]
[1739297331929,0.00022428,96020.0,96017.0,0.29127048]
[1739297332969,0.00022428,96020.0,96017.0,0.44127048]
[1739297333382,0.00022428,96020.0,96017.0,0.45542438]
[1739297333557,0.00122428,96018.0,96017.0,0.46142438]
[1739297333783,0.00122428,96018.0,96017.0,0.45542438]
[1739297333942,0.00222428,96018.0,96017.0,0.46242438]
[1739297334121,0.00322428,96018.0,96017.0,0.47742438]
[1739297334973,0.00322428,96018.0,96017.0,0.31327048]
[1739297335374,0.00322428,96018.0,96017.0,0.28072565]
[1739297338850,0.00322428,96018.0,96017.0,0.022]
[1739297339006,0.00322428,96018.0,96017.0,0.178222]
[1739297339203,0.00188416,96018.0,96017.0,0.022]
[1739297339605,0.08388416,96018.0,96017.0,0.022]
[1739297340211,0.08388416,96018.0,96008.0,0.30148913]
[1739297340212,0.082,96018.0,96008.0,0.14525313]
[1739297340616,0.083,96018.0,96017.0,0.012]
[1739297341021,0.082,96018.0,96017.0,0.004]
[1739297341426,0.083,96018.0,96017.0,0.004]
[1739297341970,0.082,96018.0,96008.0,0.14525313]
[1739297342408,0.082,96018.0,96008.0,0.14925313]
[1739297342541,0.082,96018.0,96008.0,0.14525313]
[1739297342745,0.082,96018.0,96000.0,0.14525313]
[1739297342951,0.23822,96018.0,96017.0,0.0035]
[1739297343147,0.345396,96018.0,96000.0,0.14525313]
[1739297343684,0.156226,96015.0,96000.0,0.14525313]
[1739297343871,0.294322,96018.0,96000.0,0.14525313]
[1739297344216,0.29332,96018.0,96017.0,0.004]
[1739297344690,0.29532,96018.0,96017.0,0.004]
[1739297344895,0.29332,96018.0,96017.0,0.004]
[1739297345336,0.30751802,96018.0,96017.0,0.004]
[1739297345876,0.30751802,96018.0,96000.0,0.156248]
[1739297346324,0.30951802,96018.0,96000.0,0.156248]
[1739297346725,0.1391,96018.0,96017.0,0.0001066]
[1739297346898,0.1371,96018.0,96017.0,0.0001066]
[1739297347079,0.13932387,96018.0,96017.0,0.0001066]
[1739297347503,0.29554387,96018.0,96017.0,0.0001066]
[1739297347704,0.29354387,96018.0,96017.0,0.0001066]
[1739297348043,0.29554387,96018.0,96017.0,0.0001066]
[1739297348260,0.13932387,96018.0,96017.0,0.0001066]
[1739297349907,0.13732387,96018.0,96017.0,0.0001066]
[1739297350240,0.13732387,96018.0,96017.0,0.0021066]
[1739297351190,0.12732387,96018.0,96017.0,0.0021066]
[1739297351486,0.06937812,96018.0,96017.0,0.0021066]
[1739297351697,0.05937812,96018.0,96017.0,0.0021066]
[1739297351900,0.06937812,96018.0,96017.0,0.0021066]
[1739297353564,0.22559812,96018.0,96017.0,0.0021066]
[1739297354507,0.06937812,96018.0,96017.0,0.0021066]
[1739297354687,0.06937812,96018.0,96017.0,0.0011066]
[1739297354850,0.07737812,96018.0,96017.0,0.0021066]